Cogmind - Beta 10.2 @@@ ROGUE MODE // 2021.03.17 @ 11:50:58 Player: Moodge Result: Destroyed by G-34 Mercenary with Small Laser Performance ------------- Evolutions (1) 500 Regions Visited (2) 400 Robots Destroyed (18) 90 Value Destroyed (513) 513 Prototype IDs (0) 0 Alien Tech Used (0) 0 Bonus (0) 0 TOTAL SCORE: 1503 Bonus ------- None Cogmind --------- Core Integrity 0/400 Matter 300/300 Energy 63/100 System Corruption 12% Temperature Cool (6) Movement Core (50) Location -9/Materials Parts ------- > --- POWER (1) -------- (None) > --- PROPULSION (4) --- (None) > --- UTILITY (2) ------ System Shield > --- WEAPON (2) ------- Heavy Assault Rifle > --- INVENTORY (4) ---- Aluminum Leg Small Storage Unit Terrain Scan Processor Datajack Peak State ------------ > --- POWER ------------ Light Ion Engine > --- PROPULSION ------- Aluminum Leg Aluminum Leg Aluminum Leg Flight Unit > --- UTILITY ---------- System Shield System Shield > --- WEAPON ----------- Heavy Assault Rifle Heavy Assault Rifle > --- INVENTORY -------- Small Storage Unit Terrain Scan Processor EM Pulse Gun Datajack [Rating: 15] Favorites ----------- Power Ion Engine Engine Ion Engine Propulsion Aluminum Leg Leg Aluminum Leg Flight Unit Flight Unit Utility Terrain Scanner Device Terrain Scanner Storage Small Storage Unit Processor Terrain Scan Processor Hackware System Shield Weapon EM Pulse Gun Energy Gun EM Pulse Gun Ballistic Gun Light Assault Rifle Build | -11 -10 -9 ------- Run | Scr Mat Mat Slots Evolved 2 | . . 2 Power . | . . . Propulsion 2 | . . 2 Utility . | . . . Weapon . | . . . Parts Attached 25 | 5 4 16 Power 2 | 1 . 1 Engine 2 | 1 . 1 Core . | . . . Reactor . | . . . Propulsion 6 | 2 1 3 Treads . | . . . Leg 5 | 2 1 2 Wheel . | . . . Hover . | . . . Flight 1 | . . 1 Utility 6 | . 2 4 Device 2 | . 1 1 Storage 1 | . 1 . Processor 1 | . . 1 Hackware 2 | . . 2 Protection . | . . . Artifact . | . . . Weapon 11 | 2 1 8 Energy Gun 6 | 1 1 4 Energy Cannon . | . . . Ballistic Gun 5 | 1 . 4 Ballistic Cannon . | . . . Launcher . | . . . Special Weapon . | . . . Impact Weapon . | . . . Slashing Weapon . | . . . Piercing Weapon . | . . . Special Melee Weapon . | . . . Unidentified Prototypes . | . . . Parts Lost 17 | . . 17 Power 2 | . . 2 Propulsion 5 | . . 5 Utility 3 | . . 3 Weapon 7 | . . 7 Highest Loss Streak 9 | . . 9 Average Slot Usage (%) 80 | . 90 75 Engine 11 | . 14 9 Leg 26 | . 28 25 Flight 3 | . . 5 Device 6 | . 9 5 Storage 6 | . 9 4 Processor 2 | . . 4 Hackware 3 | . . 5 Energy Gun 12 | . 14 12 Ballistic Gun 7 | . 14 4 Naked Turns . | . . . Heaviest Build 13 | 8 13 13 Greatest Support 30 | 20 20 30 Greatest Overweight (x) . | . . . Average Overweight (x) . | . . . Largest Inventory Capacity 6 | 4 6 6 Average Capacity 4 | 4 5 4 Most Carried 5 | 4 5 5 Average Carried 3 | 2 3 3 Final Capacity 6 | 4 6 4 Final Carried 5 | 4 5 4 Class Distribution -------------------- 89% | Mutant 10% | Hacker-Mutant Dominant Class ---------------- Mutant | -10/Materials Mutant | -9/Materials Resources | -11 -10 -9 ----------- Run | Scr Mat Mat Matter Collected 504 | 250 67 187 Remotely . | . . . Salvage Created 718 | . 260 458 Parts 45 | . 14 31 Haulers Intercepted 1 | . 1 . Recyclers Shooed 1 | . 1 . Parts Field Recycled . | . . . Retrieved Matter . | . . . Parts Self-Destructed . | . . . Prevented . | . . . Kills | -11 -10 -9 ------- Run | Scr Mat Mat Combat Hostiles Destroyed 12 | . 4 8 Guns 11 | . 4 7 AOE 1 | . . 1 Classes Destroyed 5 | . 4 1 Builder 3 | . 1 2 Hauler 1 | . 1 . Watcher 2 | . 1 1 Grunt 9 | . 4 5 Sentry 3 | . . 3 Best Kill Streak 4 | . 4 3 Combat Bots Only 3 | . 3 3 Max Kills in Single Turn 1 | . 1 1 Gunslinging . | . . . Exploded 1 | . . 1 Melee . | . . . Uniques/NPCs Destroyed . | . . . Combat | -11 -10 -9 -------- Run | Scr Mat Mat Damage Taken 1704 | . 203 1501 Core 431 | . 22 409 Absorbed by Shields . | . . . Core Remaining (%) 95 | 100 91 . Volleys Fired 67 | . 27 40 Largest 2 | . 2 2 Hottest 80 | . 60 80 Shots Fired 120 | . 54 66 Gun 120 | . 54 66 Cannon . | . . . Launcher . | . . . Special . | . . . Kinetic 52 | . 27 25 Thermal 14 | . . 14 Explosive . | . . . Electromagnetic 54 | . 27 27 Robot Hit Streak 8 | . 8 6 Robot Miss Streak 3 | . 3 2 Penetration Max . | . . . Secondary Targets 5 | . 4 1 Max Gunslinging Chain 1 | . 1 1 Shots Hit Robots 80 | . 38 42 Core Hits 29 | . 11 18 Critical Hits . | . . . Critical Kills . | . . . Critical Parts Destroyed . | . . . Melee Attacks . | . . . Impact . | . . . Slashing . | . . . Piercing . | . . . Sneak Attacks . | . . . Combat Hostiles . | . . . Follow-up Attacks . | . . . Damage Inflicted 1107 | . 567 540 Guns 880 | . 405 475 Cannons . | . . . Explosions 227 | . 162 65 Melee . | . . . Ramming . | . . . Kinetic 326 | . 147 179 Thermal 292 | . 162 130 Explosive . | . . . Electromagnetic 489 | . 258 231 Impact . | . . . Slashing . | . . . Piercing . | . . . Highest Corruption 12 | . . 12 Average Corruption 12 | . . 12 Corruption Purged . | . . . Effects 19 | . . 19 Message Errors 2 | . . 2 Matter Fused 2 | . . 2 Heat Flow Errors 2 | . . 2 Energy Discharges 1 | . . 1 Data Loss (minor) 2 | . . 2 Misdirections 1 | . . 1 Targeting Errors 7 | . . 7 Weapon Failures 2 | . . 2 Overload Shots . | . . . Overflow Damage . | . . . Projectiles . | . . . Explosions . | . . . Melee . | . . . Knockbacks . | . . . Impact . | . . . Kinetic . | . . . Secondary . | . . . Self-Inflicted Damage 60 | . 34 26 Shots 2 | . 1 1 Rammed . | . . . Targets Rammed . | . . . Kicked . | . . . Crushed . | . . . Highest Temperature 244 | . 126 244 Average Temperature 48 | . 44 51 Received Heat Transfer 711 | . 96 615 Effects 1 | . . 1 Energy Bleed 1 | . . 1 Siege Activations . | . . . Robots Corrupted . | . . . Combat Hostiles . | . . . Parts Fried 1 | . 1 . Impact Corruptions . | . . . Robots Melted . | . . . Combat Hostiles . | . . . Parts Melted 1 | . . 1 Heat Transferred 450 | . 200 250 Parts Sabotaged . | . . . Parts Stolen . | . . . Parts Stripped . | . . . Power Chain Reactions 4 | . 2 2 Missiles Intercepted . | . . . Alert | -11 -10 -9 ------- Run | Scr Mat Mat Peak Influence 185 | . 164 185 Initial 68 | . . 68 Average 112 | . 89 145 Maximum Alert Level . | . . . Low Security (%) 100 | 100 100 100 Level 1 . | . . . Level 2 . | . . . Level 3 . | . . . Level 4 . | . . . Level 5 . | . . . High Security . | . . . Max Security . | . . . Squads Dispatched 2 | . 2 . Investigation . | . . . Extermination . | . . . Reinforcement 2 | . 2 . Assault . | . . . Garrison . | . . . Intercept . | . . . Construction Impeded . | . . . Haulers Reinforced . | . . . Stealth | -11 -10 -9 --------- Run | Scr Mat Mat Distress Signals 3 | . 1 2 Communications Jammed . | . . . Distress Signals . | . . . Times Spotted 22 | . 8 14 Peak Tracking Total 6 | . 4 6 Tactical Retreats 1 | . . 1 Traps | -11 -10 -9 ------- Run | Scr Mat Mat Traps Triggered . | . . . Indirectly . | . . . Trap Hack Attempts . | . . . Triggered . | . . . Disarmed . | . . . Reprogrammed . | . . . Reused . | . . . Traps Extracted . | . . . Installed . | . . . Triggered . | . . . Machines | -11 -10 -9 ---------- Run | Scr Mat Mat Machines Disabled 1 | . 1 . Max in Single Turn 1 | . 1 . Machines Sabotaged . | . . . Garrisons Compromised . | . . . Overloaded Fab Kills . | . . . Fab Network Shutdowns . | . . . Hacking | -11 -10 -9 --------- Run | Scr Mat Mat Machines Accessed . | . . . Terminals . | . . . Fabricators . | . . . Repair Stations . | . . . Recycling Units . | . . . Scanalyzers . | . . . Garrison Access . | . . . Total Hacks . | . . . Successful . | . . . Failed . | . . . Catastrophic . | . . . Database Lockouts . | . . . Manual . | . . . Terminals . | . . . Fabricators . | . . . Repair Stations . | . . . Recycling Units . | . . . Scanalyzers . | . . . Garrison Access . | . . . Terminal Hacks . | . . . Fabricator Hacks . | . . . Repair Station Hacks . | . . . Recycling Unit Hacks . | . . . Scanalyzer . | . . . Garrison Access Hacks . | . . . Unauthorized Hacks . | . . . Terminals . | . . . Fabricators . | . . . Repair Stations . | . . . Recycling Units . | . . . Scanalyzers . | . . . Garrison Access . | . . . Data Cores Recovered . | . . . Used . | . . . Hacking Detections . | . . . Full Trace Events . | . . . Feedback Events . | . . . Feedback Blocked . | . . . Robot Schematics Acquired . | . . . Robots Built . | . . . Matter . | . . . Time . | . . . Total Robot Build Rating . | . . . Part Schematics Acquired . | . . . Parts Built . | . . . Matter . | . . . Time . | . . . Total Part Build Rating . | . . . Parts Repaired . | . . . Time . | . . . Parts Recycled . | . . . Recycled Matter . | . . . Retrieved Matter . | . . . Retrieved Components . | . . . Parts Scanalyzed . | . . . Part Schematics Acquired . | . . . Parts Damaged . | . . . Bothacking | -11 -10 -9 ------------ Run | Scr Mat Mat Used RIF Installer . | . . . Robots Hacked . | . . . Non-combat . | . . . Combat . | . . . Robot Hacks Applied . | . . . Relay Couplers Released . | . . . Robots Rewired . | . . . Allies Hacked . | . . . Hacks Repelled . | . . . Allies | -11 -10 -9 -------- Run | Scr Mat Mat Total Allies . | . . . Largest Group . | . . . Highest-Rated Group . | . . . Highest-Rated Ally . | . . . Total Orders . | . . . Ally Attacks . | . . . Total Damage . | . . . Kills . | . . . Allies Corrupted . | . . . Allies Melted . | . . . Intel | -11 -10 -9 ------- Run | Scr Mat Mat Robot Analysis Total . | . . . Derelict Logs Recovered . | . . . Drone Launches . | . . . Drone Recoveries . | . . . Exploration | -11 -10 -9 ------------- Run | Scr Mat Mat Turns Passed 571 | 56 190 325 Spaces Moved 271 | 40 87 144 Core 13 | 8 . 5 Treads . | . . . Legs 258 | 32 87 139 Wheels . | . . . Hover . | . . . Flight . | . . . Fastest Speed 50 | 50 120 50 Average Speed 116 | 106 120 117 Slowest Speed 120 | 120 120 120 Overloaded Moves . | . . . Propulsion Burnouts . | . . . Robots Hopped . | . . . Cave-ins Triggered 1 | . . 1 Exploration Rate (%) 12 | 4 20 14 Regions Visited 2 Branch Regions . Pre-discovered Areas . | . . . Known Exits Taken . | . . . Unknown Exits Taken 2 | 1 1 . Scrap Searched . | . . . Spaces Dug . | . . . Terrain Destroyed 18 | . 10 8 Melee . | . . . Projectile . | . . . AOE 18 | . 10 8 Terrain Rammed . | . . . Walls Destroyed . | . . . Machines Disabled . | . . . Actions | -11 -10 -9 --------- Run | Scr Mat Mat Total 405 | 53 122 230 Wait 19 | . 3 16 Move 269 | 39 86 144 Hop . | . . . Pick Up 21 | 9 2 10 Fast Attach 6 | . 1 5 Attach 14 | 5 1 8 Detach 1 | . . 1 Swap 5 | . 2 3 Drop 3 | . . 3 Fire 67 | . 27 40 Melee . | . . . Ram . | . . . Kick . | . . . Crush . | . . . Escape Stasis . | . . . Rewire . | . . . Trap . | . . . Miscellaneous . | . . . Route ------- -11/Scrapyard -10/Materials -9/Materials History --------- Turn | Location | Event 2 | -11/Scrapyard | Met Revision 17 3 | -11/Scrapyard | Discovered new exit (range 15) 57 | -11/Scrapyard | Entered Materials 228 | -10/Materials | Discovered new exit (range 3) 247 | -10/Materials | Entered another Materials area 247 | -9/Materials | Evolved 2 slots: Propulsion x2 313 | -9/Materials | Build established: Mutant 336 | -9/Materials | Crushed by falling debris 336 | -9/Materials | System corruption reached 10% 376 | -9/Materials | Lost 6 parts (1p1n1u3w) 537 | -9/Materials | Core integrity fell below 50% 561 | -9/Materials | Core integrity fell below 20% 572 | -9/Materials | Destroyed by G-34 Mercenary with Small Laser Last Messages --------------- 00549_ K-01 Serf collects debris. 00549_ Hvy. Assault Rifle destroyed. 00549_ Lgt. Ion Engine destroyed. 00550_ Acquired 43 matter. 00552_ System corrupted: EM Pulse Gun targeting data glitched. 00552_ K-01 Serf collects debris. 00556_ System corrupted: Matter fused (-8). 00558_ System corrupted: EM Pulse Gun targeting data glitched. 00560_ K-01 Serf collects debris. 00563_ EM Pulse Gun destroyed. 00564_ Acquired 41 matter. 00565_ U-05 Engineer lays Concrete. 00565_ G-47 Trooper IFF system glitched. 00565_ Acquired Aluminum Leg. 00567_ K-01 Serf collects debris. 00567_ Acquired Hvy. Assault Rifle. 00568_ G-47 Trooper destroyed. 00569_ Acquired 13 matter. 00570_ K-01 Serf collects debris. 00571_ Acquired 3 matter. Map ----- +----------------------------------------------------+ | ???????????#??#??????#???????????????????????????? | | ???#?????#??#????????????????????????????????????? | | #???????????#?#?##??#????????????????????????????? | | ???#??#?#?#???????#?#????????????????????????????? | | ??#???#??#?????#?????#??#????????????????????????? | | #????########???#?#???#??????????????????????????? | | ?##??# #???##???????????????????????????????? | | #???## #????##???#??????????????????????????? | | ??#?# ###################??????????????????? | | ?##### ! + # #??????????????????? | | #?#### ! ############ # #??????????????????? | | #??#?# *= #???######## # #??????????????????? | | #########+### ##!! # #??????????????????? | | %[ ##!! # #??????????????????? | | ##!! # #??????????????????? | | ##!! # #??????????????????? | | ##+########## ##!! + *#??????????????????? | | ==!! #?#?##?## ###! # #??????????????????? | | !!%*!##?#??### #?##### ######??????????????????? | | !% |[##?#?#### #?#???# #??????????????????? | | !=% #??##??## ############ #??????????????????? | | **% !###?#?#?# #???# #??????????????????? | | % [# ?? ??# #???# #??????????????????? | | [%!*=# ??? ?# ! #??## #### ####??????????? | | #+####??"???### #####g= #### #??????????? | | #%####??""??????????#*%*=@ u +??????????? | | # ###??? ? ????????#=g%!u[[ #??????????? | | # #??????? ?# ??????# ! k[ ########??????????? | | # #?????????????????# #?????????????????? | | # #??#????????????? + #?????????????????? | | ? ?? ?????" # #?????????????????? | | ?????????????"" ?## #?????????????????? | | ?????????????""???# """ + ????????????????? | | ??? ????????? ????# """ # ???????????????? | | ??????????????????# """ #?????????????????? | | ??????????????????# #?????????????????? | | ???? ?????????????# ? #?????????????????? | | ??????????????????# ? #?????????????????? | | ??????????????????# ? ?????????????????? | | ?????????????????????a ? ?????????????????? | | ?????????????????????####?## ??????????????????? | | ?????????????????????????????????????????????????? | | ?????????????????????????????????????????????????? | | ?????????????????????????????????????????????????? | | ?????????????????????????????????????????????????? | | ?????????????????????????????????????????????????? | | ?????????????????????????????????????????????????? | | ?????????????????????????????????????????????????? | | ?????????????????????????????????????????????????? | | ?????????????????????????????????????????????????? | +----------------------------------------------------+ Best States ------------- Heat Dissipation 28 Energy Generation 10 Energy Capacity 250 Matter Stores 300 Matter Capacity 300 Sight Range 16 Terrain Scan Range 14 Terrain Scan Density 85 Evasion (%) 50 Defensive Hacking 20 Item Schematics ----------------- None Robot Schematics ------------------ None Fabricated ------------ Nothing Alien Tech Used ----------------- None Achievements -------------- Unlikely Earthworm Challenges ------------ None Game ------ Seed QuantumTractorChip Manual? 0 Play Time 00:14:37 Cumulative 8.2 hours Start 2021.03.17 @ 11:40:15 End 2021.03.17 @ 11:50:58 Sessions 1 Manual Loads 0 Difficulty Rogue Special Mode None Game No. 30 Rogue 30 Adventurer 0 Explorer 0 Win Type - Total 0 Types 0/0/0/0/0/0/0/0/0 Lore% 3 Gallery% 17 Achievement% 16 Wizard Run 0 Options --------- ASCII 0 Keyboard 0 Movement Mouse Keybinds 0 Fullscreen 2 Font 16/SmallcapsGlow Map View 76x50 Tactical HUD 1 Map Filters NONE Filters NONE Steam 1 RUN: fc0a1d66-c689-44fe-8551-39ea4079a6cd